bitfinex/quotes_BTCUSD_20230115
["timestamp","ask_amount","ask_price","bid_price","bid_amount"]
[1673767759223,0.04149946,20712.0,20710.0,1.0283901]
[1673767759491,0.009,20711.0,20710.0,1.0283901]
[1673767762514,0.009,20711.0,20710.0,1.50559179]
[1673767764264,0.009,20711.0,20710.0,1.50566398]
[1673767767301,0.009,20711.0,20710.0,1.50559179]
[1673767768427,0.009,20711.0,20710.0,1.0283901]
[1673767768679,0.009,20711.0,20710.0,0.5455321]
[1673767769854,0.009,20711.0,20710.0,0.4230321]
[1673767771867,0.49057618,20711.0,20709.0,0.48771]
[1673767772115,0.49057618,20711.0,20709.0,0.004841]
[1673767772879,0.59231309,20711.0,20709.0,0.004841]
[1673767773141,0.056582,20710.0,20709.0,0.004841]
[1673767773399,0.56280827,20710.0,20709.0,0.004841]
[1673767773916,0.50622627,20710.0,20709.0,0.004841]
[1673767774455,0.56280827,20710.0,20709.0,0.004841]
[1673767774681,0.57180827,20710.0,20709.0,0.004841]
[1673767775734,0.51522627,20710.0,20709.0,0.004841]
[1673767776573,0.57180827,20710.0,20709.0,0.004841]
[1673767783592,0.51522627,20710.0,20709.0,0.004841]
[1673767783849,0.57180827,20710.0,20709.0,0.004841]
[1673767784588,0.51522627,20710.0,20709.0,0.004841]
[1673767784822,0.57180827,20710.0,20709.0,0.004841]
[1673767785806,0.51522627,20710.0,20709.0,0.004841]
[1673767786078,0.57180827,20710.0,20709.0,0.004841]
[1673767787346,0.85392523,20710.0,20709.0,0.004841]
[1673767787855,0.57180827,20710.0,20709.0,0.004841]
[1673767790620,0.51522627,20710.0,20709.0,0.004841]
[1673767790867,0.57180827,20710.0,20709.0,0.004841]
[1673767791105,0.71578451,20710.0,20709.0,0.004841]
[1673767791348,0.57180827,20710.0,20709.0,0.004841]
[1673767793333,0.51522627,20710.0,20709.0,0.004841]
[1673767793588,0.57180827,20710.0,20709.0,0.004841]
[1673767794072,0.71578451,20710.0,20709.0,0.004841]
[1673767794823,0.82208692,20710.0,20709.0,0.004841]
[1673767795847,0.71578451,20710.0,20709.0,0.004841]
[1673767796583,0.65920251,20710.0,20709.0,0.004841]
[1673767796826,0.71578451,20710.0,20709.0,0.004841]
[1673767797069,0.57180827,20710.0,20709.0,0.004841]
[1673767797326,0.71578451,20710.0,20709.0,0.004841]
[1673767799631,0.93139891,20710.0,20709.0,0.004841]
[1673767800123,0.71578451,20710.0,20709.0,0.004841]
[1673767801389,0.93174886,20710.0,20709.0,0.004841]
[1673767802376,0.56948626,20710.0,20709.0,0.00473947]
[1673767802630,1.84764113,20710.0,20709.0,0.00473947]
[1673767803169,0.83637991,20710.0,20709.0,0.00473947]
[1673767803381,1.31276736,20710.0,20709.0,0.00473947]
[1673767803639,1.42553225,20710.0,20709.0,0.00473947]
[1673767803907,1.92682741,20710.0,20709.0,0.00473947]
[1673767804166,0.83637991,20710.0,20709.0,0.00473947]
[1673767804925,1.67246179,20710.0,20709.0,0.00473947]
[1673767805957,0.66413309,20709.0,20708.0,0.00929859]
[1673767806195,0.84320549,20709.0,20708.0,0.00929859]
[1673767806453,0.1441298,20709.0,20708.0,0.84561305]
[1673767806707,0.1531298,20710.0,20708.0,0.6548871]
[1673767806963,0.98755748,20711.0,20708.0,0.6548871]
[1673767806964,0.77136279,20711.0,20708.0,0.6548871]
[1673767807218,0.104168,20711.0,20709.0,0.19072595]
[1673767807483,0.104168,20711.0,20710.0,1.21594818]
[1673767807736,0.104168,20711.0,20710.0,2.32525686]
[1673767808003,0.104168,20711.0,20710.0,1.47561744]
[1673767808313,0.104168,20711.0,20710.0,2.74141664]
[1673767808533,0.104168,20711.0,20710.0,1.90886145]
[1673767808768,0.104168,20711.0,20710.0,1.99787996]
[1673767809028,0.104168,20711.0,20710.0,1.90887996]
[1673767809276,0.104168,20711.0,20710.0,2.66124725]
[1673767809533,0.104168,20711.0,20710.0,2.57224725]
[1673767809791,0.104168,20711.0,20710.0,2.66124725]
[1673767810041,0.58616487,20711.0,20710.0,0.089]
[1673767810850,0.58616487,20711.0,20710.0,0.084]
[1673767811323,0.58616487,20711.0,20708.0,0.5968665]
[1673767811582,0.58716487,20711.0,20710.0,0.08]
[1673767812096,0.58616487,20711.0,20708.0,0.5968665]
[1673767812597,0.58716487,20711.0,20710.0,0.08]
[1673767812851,0.58616487,20711.0,20708.0,0.5968665]
[1673767813622,0.58616487,20711.0,20708.0,1.5626555]
[1673767813872,0.58716487,20711.0,20709.0,0.321487]
[1673767814130,0.58716487,20711.0,20708.0,1.6426555]
[1673767814693,0.58616487,20711.0,20709.0,0.321487]
[1673767814923,0.58716487,20711.0,20709.0,0.482877]
[1673767815690,0.58616487,20711.0,20709.0,0.482877]
[1673767815982,0.58716487,20711.0,20709.0,0.562877]
[1673767817232,0.53302834,20710.0,20709.0,0.562877]
[1673767817497,0.68820973,20710.0,20709.0,0.08]
[1673767817752,0.91728462,20710.0,20709.0,0.08]
[1673767818013,1.13347931,20710.0,20708.0,0.00929859]
[1673767818266,1.07689731,20710.0,20708.0,0.00929859]
[1673767818557,1.07789731,20710.0,20709.0,0.08]
[1673767818780,1.61733731,20710.0,20709.0,0.08]
[1673767819537,1.56425381,20710.0,20709.0,0.08]
[1673767819813,1.21795912,20710.0,20709.0,0.08]
[1673767820292,1.21695912,20710.0,20708.0,0.00929859]
[1673767820547,1.16137712,20710.0,20708.0,0.08929859]
[1673767820796,0.056582,20709.0,20708.0,0.00929859]
[1673767821038,0.539463,20709.0,20708.0,0.00929859]
[1673767821547,0.056582,20709.0,20708.0,0.00929859]
[1673767821798,1.16037712,20710.0,20708.0,0.00929859]
[1673767822045,1.16037712,20710.0,20708.0,0.08929859]
[1673767822046,0.69857507,20709.0,20708.0,0.08929859]
[1673767822812,0.73919295,20709.0,20708.0,0.08929859]
[1673767823304,0.68261095,20709.0,20708.0,0.08929859]
[1673767824055,0.68261095,20709.0,20708.0,0.28002454]
[1673767824056,0.04161788,20709.0,20708.0,0.28002454]
[1673767824298,0.04161788,20709.0,20708.0,0.08929859]
[1673767824537,0.04161788,20709.0,20708.0,0.41078559]
[1673767824793,0.04161788,20709.0,20708.0,0.62024886]
[1673767825288,0.04161788,20709.0,20708.0,1.42464086]
[1673767825802,0.04161788,20709.0,20708.0,0.94173586]
[1673767826045,0.04161788,20709.0,20708.0,0.9418727]
[1673767827036,0.04161788,20709.0,20708.0,0.9368727]
[1673767829268,0.04161788,20709.0,20708.0,2.53005239]
[1673767830265,0.04161788,20709.0,20708.0,1.4197777]
[1673767835751,0.04161788,20709.0,20708.0,2.91539691]
[1673767835989,0.04161788,20709.0,20708.0,3.9914479]
[1673767836998,0.04161788,20709.0,20708.0,3.63109317]
[1673767837232,0.02545094,20709.0,20708.0,3.99216546]
[1673767837477,0.02545094,20709.0,20708.0,3.70316412]
[1673767837711,0.02545094,20709.0,20708.0,3.99216392]
[1673767838214,0.02545094,20709.0,20708.0,3.99216217]
[1673767838453,0.02545094,20709.0,20708.0,3.70316412]
[1673767838695,0.02545094,20709.0,20708.0,3.99210404]
[1673767839434,0.02545094,20709.0,20708.0,3.63174931]
[1673767840149,0.02545094,20709.0,20708.0,4.09049064]
[1673767840402,0.02545094,20709.0,20708.0,3.48548086]
[1673767840652,0.02545094,20709.0,20708.0,3.63202644]
[1673767840894,0.02545094,20709.0,20708.0,3.84871213]
[1673767841473,0.02545094,20709.0,20708.0,4.12378191]
[1673767841722,0.02545094,20709.0,20708.0,4.14308645]
[1673767841984,0.02545094,20709.0,20708.0,3.99860821]
[1673767842246,0.02545094,20709.0,20708.0,3.99860737]
[1673767842506,0.02545094,20709.0,20708.0,3.48545881]
[1673767843012,0.02545094,20709.0,20708.0,3.97739215]
[1673767843515,0.02545094,20709.0,20708.0,3.68845223]
[1673767843786,0.02545094,20709.0,20708.0,3.97739215]
[1673767844837,0.02545094,20709.0,20708.0,3.48545881]
[1673767845092,0.02545094,20709.0,20708.0,3.48552796]
[1673767845593,0.02545094,20709.0,20708.0,3.97997798]
[1673767846607,0.02545094,20709.0,20708.0,3.35492868]
[1673767846866,0.02545094,20709.0,20708.0,3.13817312]
[1673767847113,0.02545094,20709.0,20708.0,3.97184162]
[1673767847367,0.02545094,20709.0,20708.0,3.49852785]
[1673767848978,0.02545094,20709.0,20708.0,4.06292756]
[1673767849192,0.02545094,20709.0,20708.0,3.49852785]
[1673767849441,0.02545094,20709.0,20708.0,4.0736536]
[1673767850199,0.02545094,20709.0,20708.0,3.13817312]
[1673767850486,0.02545094,20709.0,20708.0,3.96928366]
[1673767850989,0.02545094,20709.0,20708.0,3.13817312]
[1673767851254,0.02545094,20709.0,20708.0,4.09864421]
[1673767852022,0.02545094,20709.0,20708.0,3.95505758]
[1673767853050,0.02545094,20709.0,20708.0,3.66611766]
[1673767853309,0.02545094,20709.0,20708.0,3.95505758]
[1673767853823,0.02545094,20709.0,20708.0,3.81062944]
[1673767854328,0.02545094,20709.0,20708.0,2.8161179]
[1673767854580,0.02545094,20709.0,20708.0,3.32593549]
[1673767854830,0.02545094,20709.0,20708.0,3.32592698]
[1673767855599,0.02545094,20709.0,20708.0,3.32593023]
[1673767856697,0.02545094,20709.0,20708.0,3.1814152]
[1673767857614,0.02545094,20709.0,20708.0,3.47035512]
[1673767858121,0.02534774,20709.0,20708.0,3.47035512]
[1673767859919,0.02534774,20709.0,20708.0,3.17035512]
[1673767860160,0.02534774,20709.0,20708.0,2.8814152]
[1673767860419,0.02534774,20709.0,20708.0,3.1814152]
[1673767860678,0.02534774,20709.0,20708.0,3.47035512]
[1673767861433,0.02534774,20709.0,20708.0,3.1814152]
[1673767862219,0.02534774,20709.0,20708.0,3.47035512]
[1673767862463,0.02534774,20709.0,20708.0,3.1814152]
[1673767862711,0.02534774,20709.0,20708.0,3.47035512]
[1673767862960,0.02534774,20709.0,20708.0,3.17035512]
[1673767863961,0.02534774,20709.0,20708.0,2.84173243]
[1673767864256,0.02534774,20709.0,20708.0,2.97233243]
[1673767864257,0.01566589,20709.0,20708.0,2.97233243]
[1673767866558,0.01566589,20709.0,20708.0,3.4047581]
[1673767867075,0.01566589,20709.0,20708.0,3.74823746]
[1673767867342,0.01566589,20709.0,20708.0,3.31581179]
[1673767867595,0.01566589,20709.0,20708.0,3.31549509]
[1673767867848,0.01566589,20709.0,20708.0,2.97233243]
[1673767868115,0.01566589,20709.0,20708.0,3.42527369]
[1673767868408,0.01566589,20709.0,20708.0,3.78690235]
[1673767868933,0.01566589,20709.0,20708.0,3.42527369]
[1673767869895,0.01566589,20709.0,20708.0,2.90340126]
[1673767870148,0.01566589,20709.0,20708.0,3.04809286]
[1673767870404,0.01566589,20709.0,20708.0,2.83108066]
[1673767870907,0.01566589,20709.0,20708.0,4.11119687]
[1673767871405,0.01566589,20709.0,20708.0,3.82184864]
[1673767872435,0.01566589,20709.0,20708.0,3.20340126]
[1673767872942,0.01566589,20709.0,20708.0,3.79531093]
[1673767873222,0.01566589,20709.0,20708.0,3.20340126]
[1673767873937,0.01566589,20709.0,20708.0,2.84173243]
[1673767874248,0.01566589,20709.0,20708.0,4.09737372]
[1673767874495,0.104168,20711.0,20709.0,0.00910919]
[1673767874774,0.104168,20711.0,20710.0,2.85915223]
[1673767875028,0.104168,20711.0,20710.0,3.52240555]
[1673767875271,0.104168,20711.0,20710.0,4.48829978]
[1673767875539,0.104168,20711.0,20710.0,4.83025822]
[1673767877096,0.104168,20711.0,20710.0,4.92225822]
[1673767877322,0.104168,20711.0,20710.0,4.83025822]
[1673767877550,0.104168,20711.0,20710.0,4.92225822]
[1673767879056,0.104168,20711.0,20710.0,4.92245822]
[1673767879601,0.104168,20711.0,20710.0,4.93095822]
[1673767882384,0.104168,20711.0,20710.0,4.93125218]
[1673767882617,0.104168,20711.0,20710.0,4.92275218]
[1673767883117,0.104168,20711.0,20710.0,4.48868249]
[1673767883862,0.104168,20711.0,20710.0,4.92275218]
[1673767884359,0.06506292,20711.0,20710.0,4.92275218]
[1673767884603,0.06506292,20711.0,20710.0,4.48525076]
[1673767884860,0.02767776,20711.0,20710.0,4.48525076]
[1673767885102,0.02767776,20711.0,20710.0,4.62032132]
[1673767885363,0.02767776,20711.0,20710.0,4.62882132]
[1673767886115,0.02767776,20711.0,20710.0,4.265568]
[1673767886364,0.02767776,20711.0,20710.0,5.18341986]
[1673767886606,0.02767776,20711.0,20710.0,4.62662121]
[1673767887110,0.02767776,20711.0,20710.0,5.13194908]
[1673767888357,0.02767776,20711.0,20710.0,4.62662121]
[1673767888603,0.02767776,20711.0,20710.0,4.91545148]
[1673767888850,0.02767776,20711.0,20710.0,5.24977195]
[1673767889094,0.02767776,20711.0,20710.0,4.91545138]
[1673767890386,0.02767776,20711.0,20710.0,5.50240577]
[1673767890629,0.02767776,20711.0,20710.0,4.91545138]
[1673767891149,0.02767776,20711.0,20710.0,5.27585132]
[1673767891387,0.02767776,20711.0,20710.0,4.91545138]
[1673767891636,0.02767776,20711.0,20710.0,4.62662121]
[1673767891886,0.02767776,20711.0,20710.0,4.98702115]
[1673767892196,0.02767776,20711.0,20710.0,4.62596794]
[1673767892395,0.02767776,20711.0,20710.0,4.98689648]
[1673767892649,0.02767776,20711.0,20710.0,4.62649654]
[1673767893642,0.02767776,20711.0,20710.0,4.49599654]
[1673767895440,0.02767776,20711.0,20710.0,4.40399654]
[1673767895711,0.02767776,20711.0,20710.0,4.49599654]
[1673767895977,0.02767776,20711.0,20710.0,4.40399654]
[1673767896233,0.02767776,20711.0,20710.0,4.49599654]
[1673767896493,0.12941467,20711.0,20710.0,2.87546631]
[1673767896760,0.60306167,20711.0,20710.0,0.092]
[1673767897396,0.60306167,20711.0,20708.0,0.71437403]
[1673767897651,0.1305,20710.0,20708.0,0.71437403]
[1673767897900,0.1305,20710.0,20708.0,0.00417951]
[1673767898653,0.1305,20710.0,20708.0,0.5240074]
[1673767898916,0.1315,20710.0,20708.0,0.60913977]
[1673767899162,0.1306,20710.0,20708.0,0.52413977]
[1673767899468,0.1316,20710.0,20708.0,0.60813977]
[1673767899722,0.1316,20710.0,20708.0,0.6685986]
[1673767900001,0.1326,20710.0,20708.0,0.7535986]
[1673767900262,0.1306,20710.0,20708.0,0.6685986]
[1673767900523,0.1316,20710.0,20708.0,0.60813977]
[1673767900781,0.71754723,20710.0,20708.0,0.60813977]
[1673767901279,0.71654723,20710.0,20708.0,0.52413977]
[1673767901534,0.71754723,20710.0,20708.0,0.60913977]
[1673767901807,0.71754723,20710.0,20708.0,0.52413977]
[1673767902065,0.71854723,20710.0,20708.0,0.60813977]
[1673767904935,0.71854723,20710.0,20708.0,0.60837977]
[1673767905852,0.71854723,20710.0,20708.0,0.6082474]
[1673767907645,0.36293691,20709.0,20708.0,0.08841951]
[1673767907953,0.36293691,20709.0,20708.0,0.08830578]
[1673767907954,1.453063,20709.0,20708.0,0.08830578]
[1673767908179,1.453063,20709.0,20708.0,0.08653418]
[1673767908608,1.81346294,20709.0,20708.0,0.08653418]
[1673767909263,2.27887015,20709.0,20708.0,0.08653418]
[1673767909477,1.97887015,20709.0,20708.0,0.00253418]
[1673767909693,2.93927009,20709.0,20708.0,0.00253418]
[1673767910134,3.23927009,20709.0,20708.0,0.00253418]
[1673767910500,2.2648928,20709.0,20708.0,0.00953418]
[1673767910755,2.91129274,20709.0,20708.0,0.00253418]
[1673767911013,2.92529274,20709.0,20708.0,0.00953418]
[1673767911262,2.42434312,20709.0,20708.0,0.00953418]
[1673767911776,0.00623421,20707.0,20704.0,0.00882321]
[1673767912025,0.2609,20705.0,20704.0,0.00882321]
[1673767912278,0.1302,20705.0,20704.0,0.19954916]
[1673767912525,0.1312,20706.0,20704.0,0.66186758]
[1673767913019,0.1312,20706.0,20704.0,0.49181921]
[1673767913267,0.69500141,20707.0,20705.0,0.55844056]
[1673767913531,0.13693421,20707.0,20705.0,0.55844056]
[1673767913778,0.021,20706.0,20705.0,0.55844056]
[1673767914032,0.13693421,20707.0,20705.0,1.04141556]
[1673767914537,0.15793421,20707.0,20705.0,1.15690264]
[1673767914789,0.02723421,20707.0,20706.0,0.621487]
[1673767915041,0.02723421,20707.0,20706.0,1.587389]
[1673767915291,0.00623421,20707.0,20706.0,1.58753448]
[1673767915546,0.00823421,20707.0,20706.0,2.06473617]
[1673767915796,0.00623421,20707.0,20706.0,2.06473617]
[1673767916050,0.00823421,20707.0,20706.0,2.13573617]
[1673767916788,0.00823421,20707.0,20706.0,1.16983417]
[1673767917055,0.00823421,20707.0,20706.0,2.13573617]
[1673767918836,0.00823421,20707.0,20706.0,2.79543125]
[1673767919052,0.00823421,20707.0,20706.0,2.40037617]
[1673767919830,0.00847421,20707.0,20706.0,2.40037617]
[1673767920343,0.00847421,20707.0,20706.0,1.118591]
[1673767920592,0.13917421,20707.0,20706.0,0.071]
[1673767921338,0.74282779,20707.0,20706.0,0.071]
[1673767921585,0.74082779,20707.0,20705.0,0.54530255]
[1673767921830,0.74282779,20707.0,20706.0,0.071]
[1673767922602,0.74082779,20707.0,20705.0,0.54530255]
[1673767922869,0.74282779,20707.0,20705.0,0.61630255]
[1673767923177,0.74082779,20707.0,20705.0,0.54530255]
[1673767923922,0.74082779,20707.0,20705.0,0.071]
[1673767923923,1.09506379,20707.0,20705.0,0.071]
[1673767924177,0.53919383,20706.0,20705.0,0.071]
[1673767924422,0.59577583,20706.0,20705.0,0.071]
[1673767924673,1.02214483,20706.0,20705.0,0.071]
[1673767924920,1.07872683,20706.0,20704.0,0.00882321]
[1673767925171,0.53919383,20706.0,20704.0,0.00882321]
[1673767925415,0.54119383,20706.0,20705.0,0.072]
[1673767925664,0.59777583,20706.0,20705.0,0.072]
[1673767925884,0.54119383,20706.0,20705.0,0.072]
[1673767926132,0.59577583,20706.0,20704.0,0.00882321]
[1673767926401,0.54119383,20706.0,20704.0,0.08082321]
[1673767926658,0.53919383,20706.0,20704.0,0.00882321]
[1673767926878,0.54019383,20706.0,20705.0,0.028]
[1673767927141,0.59677583,20706.0,20705.0,0.028]
[1673767927886,0.59577583,20706.0,20704.0,0.08082321]
[1673767928150,0.74629963,20706.0,20704.0,0.00882321]
[1673767928412,0.056582,20705.0,20704.0,0.00882321]
[1673767928670,0.5277675,20705.0,20704.0,0.00882321]
[1673767928922,0.4711855,20705.0,20704.0,0.08082321]
[1673767929170,0.5277675,20705.0,20704.0,0.00882321]
[1673767929666,0.002,20705.0,20704.0,0.08082321]
[1673767929912,0.672257,20705.0,20704.0,0.08082321]
[1673767931184,0.670257,20705.0,20704.0,0.00882321]
[1673767931745,0.672257,20705.0,20704.0,0.00882321]
[1673767932003,0.672257,20705.0,20704.0,0.01482321]
[1673767932004,1.34251784,20705.0,20704.0,0.01482321]
[1673767932251,1.04251784,20705.0,20704.0,0.01482321]
[1673767933550,1.01451784,20705.0,20704.0,0.00882321]
[1673767933814,1.04051784,20705.0,20704.0,0.01482321]
[1673767934373,1.01451784,20705.0,20704.0,0.00882321]
[1673767934642,1.01451784,20705.0,20704.0,0.01482321]
[1673767934900,1.04051784,20705.0,20704.0,0.01482321]
[1673767935425,1.34051784,20705.0,20704.0,0.01482321]
[1673767935722,1.45207856,20705.0,20704.0,0.20554916]
[1673767935978,1.32137856,20705.0,20704.0,0.01482321]
[1673767936738,1.32137856,20705.0,20704.0,0.01473062]
[1673767937818,0.696257,20705.0,20704.0,0.01473062]
[1673767938040,1.22275526,20705.0,20704.0,0.01473062]
[1673767938518,0.00053515,20703.0,20702.0,0.0113736]
[1673767938772,1.87590769,20703.0,20702.0,0.0113736]
[1673767939018,1.93248969,20703.0,20702.0,0.0113736]
[1673767939279,2.18861964,20703.0,20702.0,0.0113736]
[1673767939554,1.7887121,20703.0,20702.0,0.0113736]
[1673767940071,1.8207121,20703.0,20702.0,0.0163736]
[1673767940318,1.96448969,20703.0,20702.0,0.0163736]
[1673767940852,2.26448969,20703.0,20702.0,0.0163736]
[1673767941075,2.66499723,20703.0,20702.0,0.0163736]
[1673767942865,2.88066362,20703.0,20702.0,0.0163736]
[1673767943116,2.66499723,20703.0,20702.0,0.0163736]
[1673767945418,2.36499723,20703.0,20702.0,0.0163736]
[1673767945984,2.36499723,20703.0,20702.0,0.0113736]
[1673767946451,2.58066362,20703.0,20702.0,0.0113736]
[1673767946702,2.36499723,20703.0,20702.0,0.0113736]
[1673767946946,2.88066362,20703.0,20702.0,0.0113736]
[1673767947198,2.66499723,20703.0,20702.0,0.0113736]
[1673767947446,2.58066362,20703.0,20702.0,0.0113736]
[1673767947700,2.36499723,20703.0,20702.0,0.0113736]
[1673767949973,2.66499723,20703.0,20702.0,0.0113736]
[1673767950994,2.36499723,20703.0,20702.0,0.0113736]
[1673767951250,2.66499723,20703.0,20702.0,0.0113736]
[1673767951787,2.36499723,20703.0,20702.0,0.0113736]
[1673767952031,2.66499723,20703.0,20702.0,0.0113736]
[1673767953294,2.36499723,20703.0,20702.0,0.0113736]
[1673767954297,2.66499723,20703.0,20702.0,0.0113736]
[1673767955044,2.37729723,20703.0,20702.0,0.0113736]
[1673767955314,2.67729723,20703.0,20702.0,0.0113736]
[1673767955558,2.37729723,20703.0,20702.0,0.0113736]
[1673767956095,1.62839431,20703.0,20702.0,0.20224427]
[1673767956308,0.68361372,20703.0,20702.0,0.0113736]
[1673767956556,0.68361372,20703.0,20702.0,0.1218436]
[1673767956821,0.68361372,20703.0,20702.0,0.0113736]
[1673767959337,0.0536671,20703.0,20702.0,0.0113736]
[1673767960076,0.0536671,20703.0,20702.0,0.57659826]
[1673767962372,0.0536671,20703.0,20702.0,0.0113736]
[1673767962373,0.58373972,20703.0,20702.0,0.0113736]
[1673767963702,0.72751731,20703.0,20702.0,0.0113736]
[1673767964398,0.58373972,20703.0,20702.0,0.0113736]
[1673767965400,0.72751731,20703.0,20702.0,0.0113736]
[1673767965657,0.58373972,20703.0,20702.0,0.0113736]
[1673767966929,0.58365765,20703.0,20702.0,0.0113736]
[1673767968953,0.58365765,20703.0,20702.0,0.01151144]
[1673767969469,0.72743524,20703.0,20702.0,0.01151144]
[1673767970000,0.58365765,20703.0,20702.0,0.0113736]
[1673767970515,0.72743524,20703.0,20702.0,0.0113736]
[1673767971009,0.88646466,20703.0,20702.0,0.0113736]
[1673767971291,0.48486284,20703.0,20702.0,0.0113736]
[1673767971522,1.13899286,20703.0,20702.0,0.0113736]
[1673767971769,2.03879121,20703.0,20702.0,0.0113736]
[1673767972302,1.86832278,20703.0,20702.0,0.0113736]
[1673767972857,1.81174078,20703.0,20702.0,0.0113736]
[1673767973103,1.86832278,20703.0,20702.0,0.0113736]
[1673767976508,1.61947765,20703.0,20702.0,0.0113736]
[1673767977249,1.90788085,20703.0,20702.0,0.0113736]
[1673767978567,1.90792132,20703.0,20702.0,0.0113736]
[1673767978823,1.92020558,20703.0,20702.0,0.0113736]
[1673767979424,2.39417945,20703.0,20702.0,0.0113736]
[1673767979670,2.72390446,20703.0,20702.0,0.0113736]
[1673767979922,2.24993059,20703.0,20702.0,0.0113736]
[1673767980613,2.87245184,20703.0,20702.0,0.0113736]
[1673767980872,2.54272683,20703.0,20702.0,0.0113736]
[1673767981123,2.52117985,20703.0,20702.0,0.0113736]
[1673767981627,1.8986586,20703.0,20702.0,0.0113736]
[1673767981878,1.6102554,20703.0,20702.0,0.0113736]
[1673767982127,2.15321117,20703.0,20702.0,0.0113736]
[1673767982891,2.44173629,20703.0,20702.0,0.0113736]
[1673767983146,2.15321117,20703.0,20702.0,0.0113736]
[1673767984220,2.44182468,20703.0,20702.0,0.0113736]
[1673767984691,2.82575924,20703.0,20702.0,0.0113736]
[1673767984941,2.53714573,20703.0,20702.0,0.0113736]
[1673767985202,2.8258016,20703.0,20702.0,0.0113736]
[1673767985726,1.99418996,20703.0,20702.0,0.0113736]
[1673767985985,2.28286773,20703.0,20702.0,0.0113736]
[1673767986497,2.15216773,20703.0,20702.0,0.0113736]
[1673767986981,2.79967424,20703.0,20702.0,0.0113736]
[1673767986988,2.15216773,20703.0,20702.0,0.0113736]
[1673767987244,2.24244477,20703.0,20702.0,0.0113736]
[1673767987513,1.76823317,20703.0,20702.0,0.0113736]
[1673767987761,2.38019142,20703.0,20702.0,0.01126104]
[1673767988040,2.09151365,20703.0,20702.0,0.01126104]
[1673767988512,2.08334696,20703.0,20702.0,0.01126104]
[1673767988773,1.84270885,20703.0,20702.0,0.01126104]
[1673767989018,1.48307147,20703.0,20702.0,0.01126104]
[1673767990312,1.44875206,20703.0,20702.0,0.00626104]
[1673767990564,1.53475206,20703.0,20702.0,0.00626104]
[1673767991070,2.10540769,20703.0,20702.0,0.00626104]
[1673767991345,1.4523529,20703.0,20702.0,0.19698699]
[1673767991620,1.3957709,20703.0,20702.0,0.00626104]
[1673767991902,1.25802827,20703.0,20702.0,0.00626104]
[1673767992154,0.9693319,20703.0,20702.0,0.00626104]
[1673767992404,1.11368613,20703.0,20702.0,0.00626104]
[1673767992649,0.9693319,20703.0,20702.0,0.00626104]
[1673767993407,1.25802827,20703.0,20702.0,0.00626104]
[1673767993659,1.20144627,20703.0,20702.0,0.00626104]
[1673767993918,0.9127499,20703.0,20702.0,0.00626104]
[1673767994673,1.20144627,20703.0,20702.0,0.00626104]
[1673767995181,1.85280518,20703.0,20702.0,0.00626104]
[1673767995431,1.90938718,20703.0,20702.0,0.00626104]
[1673767997431,1.62069081,20703.0,20702.0,0.00626104]
[1673767998918,1.05003518,20703.0,20702.0,0.00626104]
[1673767999177,0.68920114,20703.0,20702.0,0.00626104]
[1673767999450,1.86862011,20703.0,20702.0,0.00626104]
[1673768000224,1.86862011,20703.0,20701.0,0.00516042]
[1673768000225,0.49024379,20702.0,20701.0,0.00516042]
[1673768000510,1.61084986,20702.0,20701.0,0.00516042]
[1673768000782,2.02834124,20702.0,20701.0,0.00516042]
[1673768001286,1.53809745,20702.0,20701.0,0.00516042]
[1673768001537,1.71014112,20702.0,20701.0,0.00516042]
[1673768001792,1.79614112,20702.0,20701.0,0.00516042]
[1673768002559,1.90700656,20702.0,20701.0,0.00516042]
[1673768002817,1.61423099,20702.0,20701.0,0.00516042]
[1673768003054,2.23768157,20702.0,20701.0,0.00516042]
[1673768003337,2.5985701,20702.0,20701.0,0.00516042]
[1673768003564,2.60645434,20702.0,20701.0,0.00516042]
[1673768003806,1.97511952,20702.0,20701.0,0.00516042]
[1673768004053,1.61423099,20702.0,20701.0,0.00516042]
[1673768004599,2.63371663,20702.0,20701.0,0.00516042]
[1673768004866,1.97509272,20702.0,20701.0,0.00516042]
[1673768005112,2.57699113,20702.0,20701.0,0.00516042]
[1673768006125,1.97509272,20702.0,20701.0,0.00516042]
[1673768006369,2.5473767,20702.0,20701.0,0.00516042]
[1673768006898,1.83360665,20702.0,20701.0,0.19588637]
[1673768007167,1.29397965,20702.0,20701.0,0.00516042]
[1673768007396,1.35056165,20702.0,20701.0,0.00516042]
[1673768007897,1.29397965,20702.0,20701.0,0.00516042]
[1673768008138,1.13403348,20702.0,20701.0,0.00516042]
[1673768008388,1.64074304,20702.0,20701.0,0.00516042]
[1673768008633,1.29398489,20702.0,20701.0,0.00516042]
[1673768008915,1.35056689,20702.0,20701.0,0.00516042]
[1673768010167,1.29398489,20702.0,20701.0,0.00516042]
[1673768011168,1.01925122,20702.0,20701.0,0.00516042]
[1673768011419,0.44696724,20702.0,20701.0,0.11563042]
[1673768011680,0.23043383,20702.0,20701.0,0.74916313]
[1673768011938,0.44696724,20702.0,20701.0,0.74930785]
[1673768012195,0.23043383,20702.0,20701.0,0.74930785]
[1673768012759,0.23043383,20702.0,20701.0,1.23237585]
[1673768013011,0.086,20702.0,20701.0,1.23237585]
[1673768013791,0.086,20702.0,20701.0,2.85454805]
[1673768014045,0.086,20702.0,20701.0,3.84919147]
[1673768014311,0.086,20702.0,20701.0,4.13808587]
[1673768014312,0.0272,20702.0,20701.0,4.13808587]
[1673768014565,0.0272,20702.0,20701.0,3.48785386]
[1673768014908,0.03955807,20703.0,20702.0,0.1]
[1673768015094,0.03955807,20703.0,20702.0,1.71221303]
[1673768015348,0.03955807,20703.0,20702.0,4.29655855]
[1673768015593,0.03955807,20703.0,20702.0,4.07961712]
[1673768015849,0.03955807,20703.0,20702.0,4.15162343]
[1673768016123,0.03955807,20703.0,20702.0,4.29637362]
[1673768016894,0.03955807,20703.0,20702.0,4.0991191]
[1673768017452,0.03955807,20703.0,20702.0,4.24360932]
[1673768017934,0.03955807,20703.0,20702.0,3.823521]
[1673768018445,0.03955807,20703.0,20702.0,4.0402775]
[1673768018983,0.03955807,20703.0,20702.0,4.24231977]
[1673768019250,0.03955807,20703.0,20702.0,4.17112757]
[1673768019508,0.03955807,20703.0,20702.0,4.53269596]
[1673768019771,0.03955807,20703.0,20702.0,4.17043087]
[1673768020087,0.02559958,20703.0,20702.0,4.38685042]
[1673768020317,0.02559958,20703.0,20702.0,4.29485042]
[1673768020571,0.02559958,20703.0,20702.0,2.56447171]
[1673768020835,0.02559958,20703.0,20702.0,1.83327169]
[1673768021355,0.02559958,20703.0,20702.0,2.06955087]
[1673768021608,0.02559958,20703.0,20702.0,3.52299527]
[1673768021868,0.02559958,20703.0,20702.0,3.82299526]
[1673768022130,0.02559958,20703.0,20702.0,2.85691969]
[1673768022372,0.02559958,20703.0,20702.0,4.38589871]
[1673768022642,0.02559958,20703.0,20702.0,4.09734089]
[1673768022893,0.02559958,20703.0,20702.0,3.82291554]
[1673768023143,0.02559958,20703.0,20702.0,3.73091554]
[1673768023401,0.02559958,20703.0,20702.0,3.82293403]